[Event "Late-Titled-Tuesday-Blitz-November-28-2023"]
[Site "Chess.com"]
[Date "2023.11.28"]
[Round "1"]
[White "emeli_chess"]
[Black "Hasangatin_Ramil"]
[Result "0-1"]
[WhiteElo "2375"]
[BlackElo "2695"]
[TimeControl "180+1"]
[EndTime "14:07:02 PST"]
[Termination "Hasangatin_Ramil won on time"]

1. d4 {[%clk 0:03:00.9]} 1... d6 {[%clk 0:02:55.8]} 2. e4 {[%clk 0:02:59.2]}
2... Nf6 {[%clk 0:02:54]} 3. Bd3 {[%clk 0:02:58.1]} 3... e5 {[%clk 0:02:54.3]}
4. d5 {[%clk 0:02:58.4]} 4... Be7 {[%clk 0:02:53.4]} 5. c4 {[%clk 0:02:57.7]}
5... a5 {[%clk 0:02:52]} 6. Nc3 {[%clk 0:02:56.6]} 6... Na6 {[%clk 0:02:52.5]}
7. h3 {[%clk 0:02:45]} 7... O-O {[%clk 0:02:51.4]} 8. Nf3 {[%clk 0:02:44.7]}
8... Nc5 {[%clk 0:02:41.5]} 9. Bc2 {[%clk 0:02:42.9]} 9... c6 {[%clk 0:02:41.8]}
10. O-O {[%clk 0:02:40.3]} 10... cxd5 {[%clk 0:02:37.8]} 11. cxd5 {[%clk
0:02:38.9]} 11... b5 {[%clk 0:02:38]} 12. Be3 {[%clk 0:02:26.3]} 12... b4 {[%clk
0:02:29.9]} 13. Bxc5 {[%clk 0:02:24.5]} 13... bxc3 {[%clk 0:02:29.5]} 14. Ba3
{[%clk 0:02:19.7]} 14... Ba6 {[%clk 0:02:25.7]} 15. Bd3 {[%clk 0:02:13.1]} 15...
cxb2 {[%clk 0:02:17.3]} 16. Bxb2 {[%clk 0:02:10.4]} 16... Qb6 {[%clk 0:02:17.1]}
17. Rb1 {[%clk 0:02:00.8]} 17... Bxd3 {[%clk 0:02:13.9]} 18. Qxd3 {[%clk
0:02:00.3]} 18... Qa6 {[%clk 0:02:14.4]} 19. Qxa6 {[%clk 0:01:25.6]} 19... Rxa6
{[%clk 0:02:15.3]} 20. Nd2 {[%clk 0:01:24.2]} 20... Rc8 {[%clk 0:02:02.9]} 21.
Rfc1 {[%clk 0:01:22.5]} 21... Rxc1+ {[%clk 0:02:02.3]} 22. Rxc1 {[%clk
0:01:20.6]} 22... g6 {[%clk 0:02:00]} 23. a4 {[%clk 0:01:04.9]} 23... Nh5 {[%clk
0:01:46.9]} 24. Rc8+ {[%clk 0:00:44.7]} 24... Kg7 {[%clk 0:01:46.3]} 25. Nc4
{[%clk 0:00:43.4]} 25... Nf4 {[%clk 0:01:41.2]} 26. Kf1 {[%clk 0:00:18.7]} 26...
Nd3 {[%clk 0:01:39.2]} 27. Bc3 {[%clk 0:00:18.1]} 27... Nc5 {[%clk 0:01:39.3]}
28. Bxe5+ {[%clk 0:00:11.8]} 28... dxe5 {[%clk 0:01:32.8]} 29. d6 {[%clk
0:00:11.9]} 29... Rxd6 {[%clk 0:01:09.6]} 30. Rxc5 {[%clk 0:00:04.1]} 30... Rd1+
{[%clk 0:01:05.6]} 31. Ke2 {[%clk 0:00:04.3]} 31... Rc1 {[%clk 0:01:06]} 32. Rc6
{[%clk 0:00:03.9]} 32... Rc2+ {[%clk 0:01:01.9]} 33. Kd3 {[%clk 0:00:03]} 33...
Rxf2 {[%clk 0:01:00.5]} 34. Nxa5 {[%clk 0:00:03]} 34... Rxg2 {[%clk 0:00:58]}
35. Nc4 {[%clk 0:00:02.4]} 35... Rg3+ {[%clk 0:00:51.3]} 36. Kc2 {[%clk
0:00:02.5]} 36... Rxh3 {[%clk 0:00:51.7]} 37. a5 {[%clk 0:00:02.8]} 37... Rh1
{[%clk 0:00:42.1]} 38. Kb2 {[%clk 0:00:02.1]} 38... Bh4 {[%clk 0:00:37.5]} 39.
a6 {[%clk 0:00:01.2]} 39... Bf2 {[%clk 0:00:38.1]} 40. Nb6 {[%clk 0:00:01.5]}
40... Bd4+ {[%clk 0:00:37.9]} 0-1

[Event "Late-Titled-Tuesday-Blitz-November-28-2023"]
[Site "Chess.com"]
[Date "2023.11.28"]
[Round "1"]
[White "Cristi_Coca"]
[Black "MetiForce"]
[Result "0-1"]
[WhiteElo "2468"]
[BlackElo "2930"]
[TimeControl "180+1"]
[EndTime "14:07:03 PST"]
[Termination "MetiForce won by resignation"]

1. e4 {[%clk 0:03:00]} 1... c5 {[%clk 0:02:59.1]} 2. c3 {[%clk 0:03:00]} 2...
Nf6 {[%clk 0:02:59]} 3. e5 {[%clk 0:03:00.3]} 3... Nd5 {[%clk 0:02:59.2]} 4. Nf3
{[%clk 0:03:00.7]} 4... d6 {[%clk 0:02:59.3]} 5. d4 {[%clk 0:02:59.8]} 5... cxd4
{[%clk 0:02:58.9]} 6. cxd4 {[%clk 0:03:00.7]} 6... Nc6 {[%clk 0:02:58.7]} 7. Bd2
{[%clk 0:02:53.7]} 7... dxe5 {[%clk 0:02:53.1]} 8. dxe5 {[%clk 0:02:54.6]} 8...
g6 {[%clk 0:02:52.9]} 9. Nc3 {[%clk 0:02:53.7]} 9... Bg7 {[%clk 0:02:51.4]} 10.
Bc4 {[%clk 0:02:45.7]} 10... Nb6 {[%clk 0:02:48.6]} 11. Bb5 {[%clk 0:02:45.4]}
11... O-O {[%clk 0:02:48.9]} 12. Qe2 {[%clk 0:02:39.8]} 12... Bg4 {[%clk
0:02:30.3]} 13. Bxc6 {[%clk 0:02:17.5]} 13... bxc6 {[%clk 0:02:31.2]} 14. Rd1
{[%clk 0:02:07.1]} 14... Qb8 {[%clk 0:02:12]} 15. Bf4 {[%clk 0:01:59.8]} 15...
Bxf3 {[%clk 0:02:05.4]} 16. gxf3 {[%clk 0:02:00.7]} 16... e6 {[%clk 0:01:55.6]}
17. h4 {[%clk 0:01:59]} 17... Nd5 {[%clk 0:01:55]} 18. Nxd5 {[%clk 0:01:58.1]}
18... cxd5 {[%clk 0:01:55.9]} 19. h5 {[%clk 0:01:57.3]} 19... Qb4+ {[%clk
0:01:54.1]} 20. Qd2 {[%clk 0:01:52.8]} 20... Rfb8 {[%clk 0:01:53.8]} 21. b3
{[%clk 0:01:47.6]} 21... a5 {[%clk 0:01:54.3]} 22. h6 {[%clk 0:01:32.2]} 22...
Bf8 {[%clk 0:01:50.3]} 23. Ke2 {[%clk 0:01:32]} 23... a4 {[%clk 0:01:49.9]} 24.
Qxb4 {[%clk 0:01:30.5]} 24... Rxb4 {[%clk 0:01:50.2]} 25. Bd2 {[%clk 0:01:29.5]}
25... Rb5 {[%clk 0:01:42.5]} 26. bxa4 {[%clk 0:01:24.9]} 26... Rxa4 {[%clk
0:01:43.4]} 27. Rb1 {[%clk 0:01:23]} 27... Rc5 {[%clk 0:01:04.7]} 28. Rb2 {[%clk
0:01:15.6]} 28... d4 {[%clk 0:00:52.9]} 29. f4 {[%clk 0:00:57.2]} 29... f6
{[%clk 0:00:47.1]} 30. exf6 {[%clk 0:00:54.3]} 30... Kf7 {[%clk 0:00:44.2]} 31.
Rb7+ {[%clk 0:00:51.3]} 31... Kxf6 {[%clk 0:00:44.2]} 32. Rxh7 {[%clk
0:00:50.9]} 32... Rxa2 {[%clk 0:00:44.6]} 33. Rd7 {[%clk 0:00:49.8]} 33... Rcc2
{[%clk 0:00:14.5]} 34. h7 {[%clk 0:00:19.8]} 34... Rxd2+ {[%clk 0:00:14.6]} 35.
Kf3 {[%clk 0:00:20]} 35... Rxf2+ {[%clk 0:00:15.2]} 36. Kg3 {[%clk 0:00:20.2]}
36... Rg2+ {[%clk 0:00:14.1]} 37. Kh3 {[%clk 0:00:20.5]} 37... Bg7 {[%clk
0:00:14.1]} 38. Rxg7 {[%clk 0:00:20.1]} 38... Kxg7 {[%clk 0:00:14.3]} 0-1

[Event "Late-Titled-Tuesday-Blitz-November-28-2023"]
[Site "Chess.com"]
[Date "2023.11.28"]
[Round "1"]
[White "MeisterJabo"]
[Black "Sanyura"]
[Result "1-0"]
[WhiteElo "2266"]
[BlackElo "2557"]
[TimeControl "180+1"]
[EndTime "14:07:03 PST"]
[Termination "MeisterJabo won on time"]

1. c4 {[%clk 0:02:58.1]} 1... Nf6 {[%clk 0:01:40.8]} 2. g3 {[%clk 0:02:57.1]}
2... g6 {[%clk 0:01:40.2]} 3. Bg2 {[%clk 0:02:57.2]} 3... Bg7 {[%clk 0:01:39.4]}
4. Nc3 {[%clk 0:02:58.1]} 4... d6 {[%clk 0:01:39.1]} 5. e4 {[%clk 0:02:57]} 5...
O-O {[%clk 0:01:39.4]} 6. d4 {[%clk 0:02:55.5]} 6... Nbd7 {[%clk 0:01:38.8]} 7.
Nge2 {[%clk 0:02:51.7]} 7... e5 {[%clk 0:01:38.6]} 8. O-O {[%clk 0:02:51.9]}
8... exd4 {[%clk 0:01:39.5]} 9. Nxd4 {[%clk 0:02:52.3]} 9... Nc5 {[%clk
0:01:37.3]} 10. Re1 {[%clk 0:02:48.1]} 10... Ng4 {[%clk 0:01:36.3]} 11. Nb3
{[%clk 0:01:47.8]} 11... Ne5 {[%clk 0:01:29.7]} 12. Nxc5 {[%clk 0:01:46.1]}
12... dxc5 {[%clk 0:01:30.6]} 13. Be3 {[%clk 0:01:37.7]} 13... Nxc4 {[%clk
0:01:24]} 14. Bxc5 {[%clk 0:01:37.6]} 14... Qxd1 {[%clk 0:01:19.4]} 15. Nxd1
{[%clk 0:01:38.2]} 15... Rd8 {[%clk 0:01:15.6]} 16. Rb1 {[%clk 0:01:38.2]} 16...
Bg4 {[%clk 0:01:11.7]} 17. Ne3 {[%clk 0:01:35.5]} 17... Be6 {[%clk 0:01:05.9]}
18. Nxc4 {[%clk 0:01:32.7]} 18... Bxc4 {[%clk 0:01:06.8]} 19. b3 {[%clk
0:01:33.5]} 19... Bd3 {[%clk 0:01:05.7]} 20. Rbd1 {[%clk 0:01:29]} 20... Bb5
{[%clk 0:00:52.6]} 21. e5 {[%clk 0:01:24]} 21... Rxd1 {[%clk 0:00:38.4]} 22.
Rxd1 {[%clk 0:01:24.9]} 22... Bxe5 {[%clk 0:00:38.9]} 23. Bxb7 {[%clk
0:01:24.2]} 23... Rb8 {[%clk 0:00:39]} 24. Bd5 {[%clk 0:01:20.6]} 24... c6
{[%clk 0:00:37.8]} 25. Bf3 {[%clk 0:01:19.4]} 25... a5 {[%clk 0:00:37.9]} 26.
Rd7 {[%clk 0:01:16.8]} 26... a4 {[%clk 0:00:36.7]} 27. bxa4 {[%clk 0:01:06.5]}
27... Bxa4 {[%clk 0:00:37.6]} 28. Ra7 {[%clk 0:01:04.5]} 28... Rb1+ {[%clk
0:00:35.7]} 29. Kg2 {[%clk 0:01:04.6]} 29... Bb5 {[%clk 0:00:36.4]} 30. h3
{[%clk 0:00:58.9]} 30... h5 {[%clk 0:00:30.1]} 31. h4 {[%clk 0:00:50.7]} 31...
Ra1 {[%clk 0:00:17.7]} 32. Be4 {[%clk 0:00:43]} 32... Bf1+ {[%clk 0:00:15.7]}
33. Kh2 {[%clk 0:00:42.4]} 33... Bc4 {[%clk 0:00:16.3]} 34. a3 {[%clk
0:00:42.4]} 34... Rc1 {[%clk 0:00:15.8]} 35. Be3 {[%clk 0:00:39.8]} 35... Re1
{[%clk 0:00:15.2]} 36. Bxc6 {[%clk 0:00:39.4]} 36... g5 {[%clk 0:00:04.2]} 37.
Ra5 {[%clk 0:00:27.7]} 1-0

[Event "Late-Titled-Tuesday-Blitz-November-28-2023"]
[Site "Chess.com"]
[Date "2023.11.28"]
[Round "1"]
[White "Jesseinkman"]
[Black "Hrant_ChessMood"]
[Result "0-1"]
[WhiteElo "2471"]
[BlackElo "2939"]
[TimeControl "180+1"]
[EndTime "14:07:10 PST"]
[Termination "Hrant_ChessMood won on time"]

1. e4 {[%clk 0:03:00.9]} 1... e5 {[%clk 0:02:58.3]} 2. Nf3 {[%clk 0:02:58.9]}
2... Nc6 {[%clk 0:02:58]} 3. Nc3 {[%clk 0:02:56.1]} 3... Nf6 {[%clk 0:02:56.6]}
4. d4 {[%clk 0:02:53.8]} 4... exd4 {[%clk 0:02:57]} 5. Nxd4 {[%clk 0:02:54.7]}
5... Bc5 {[%clk 0:02:57.4]} 6. Be3 {[%clk 0:02:53.1]} 6... Bb6 {[%clk 0:02:53]}
7. Nxc6 {[%clk 0:02:45.2]} 7... bxc6 {[%clk 0:02:52.7]} 8. Bxb6 {[%clk
0:02:41.5]} 8... axb6 {[%clk 0:02:51.7]} 9. Bd3 {[%clk 0:02:41.6]} 9... d6
{[%clk 0:02:50.5]} 10. O-O {[%clk 0:02:38.9]} 10... O-O {[%clk 0:02:50.7]} 11.
Re1 {[%clk 0:02:36.7]} 11... Ng4 {[%clk 0:02:39.4]} 12. h3 {[%clk 0:02:32.4]}
12... Ne5 {[%clk 0:02:36.3]} 13. f4 {[%clk 0:02:32.4]} 13... Ng6 {[%clk
0:02:30.8]} 14. Qf3 {[%clk 0:02:26.8]} 14... Qh4 {[%clk 0:02:29.7]} 15. Rf1
{[%clk 0:02:23.3]} 15... Bd7 {[%clk 0:02:25.8]} 16. a3 {[%clk 0:02:17.8]} 16...
Rae8 {[%clk 0:02:20.3]} 17. Qf2 {[%clk 0:01:52.7]} 17... Qxf2+ {[%clk 0:02:02]}
18. Rxf2 {[%clk 0:01:53.6]} 18... h5 {[%clk 0:02:02.8]} 19. f5 {[%clk
0:01:33.6]} 19... Ne5 {[%clk 0:02:01.3]} 20. f6 {[%clk 0:01:34.1]} 20... Re6
{[%clk 0:01:52.1]} 21. Raf1 {[%clk 0:01:31.9]} 21... Rxf6 {[%clk 0:01:50.7]} 22.
Rxf6 {[%clk 0:01:31.7]} 22... gxf6 {[%clk 0:01:51.6]} 23. Rxf6 {[%clk
0:01:32.4]} 23... Kg7 {[%clk 0:01:48.9]} 24. Rf2 {[%clk 0:01:28.9]} 24... h4
{[%clk 0:01:47.9]} 25. Ne2 {[%clk 0:01:25]} 25... Rh8 {[%clk 0:01:47.9]} 26. Nd4
{[%clk 0:01:23.5]} 26... c5 {[%clk 0:01:41.1]} 27. Nf3 {[%clk 0:01:06.2]} 27...
Ng6 {[%clk 0:01:41.3]} 28. Ng5 {[%clk 0:01:00]} 28... f6 {[%clk 0:01:38.4]} 29.
Nf3 {[%clk 0:00:57.8]} 29... Re8 {[%clk 0:01:29.8]} 30. Nd2 {[%clk 0:00:55.9]}
30... Bc6 {[%clk 0:01:27.5]} 31. b4 {[%clk 0:00:51.3]} 31... Ra8 {[%clk
0:01:24.8]} 32. Nc4 {[%clk 0:00:34.5]} 32... Bd7 {[%clk 0:01:13.8]} 33. Ne3
{[%clk 0:00:27.8]} 33... Be6 {[%clk 0:01:05.8]} 34. Nf5+ {[%clk 0:00:19]} 34...
Bxf5 {[%clk 0:01:04.2]} 35. exf5 {[%clk 0:00:19.9]} 35... Ne5 {[%clk 0:01:04.5]}
36. bxc5 {[%clk 0:00:18.7]} 36... bxc5 {[%clk 0:01:04.6]} 37. Rf4 {[%clk
0:00:18.9]} 37... Rxa3 {[%clk 0:01:03.9]} 38. Rxh4 {[%clk 0:00:19]} 38... d5
{[%clk 0:00:59.5]} 39. Bb5 {[%clk 0:00:13.9]} 39... c6 {[%clk 0:00:57.2]} 40.
Bf1 {[%clk 0:00:11.3]} 40... c4 {[%clk 0:00:50.9]} 41. Rd4 {[%clk 0:00:09.4]}
41... Ra2 {[%clk 0:00:50.2]} 42. Rd2 {[%clk 0:00:06.8]} 42... c3 {[%clk
0:00:50.4]} 43. Rf2 {[%clk 0:00:06.6]} 43... d4 {[%clk 0:00:50.4]} 44. g4 {[%clk
0:00:06.4]} 44... c5 {[%clk 0:00:49.9]} 45. Kg2 {[%clk 0:00:06.6]} 45... c4
{[%clk 0:00:49.8]} 46. Kg3 {[%clk 0:00:06.4]} 46... d3 {[%clk 0:00:50.1]} 47.
cxd3 {[%clk 0:00:05.3]} 47... Rxf2 {[%clk 0:00:50]} 48. Kxf2 {[%clk 0:00:06.2]}
48... c2 {[%clk 0:00:50.6]} 0-1

[Event "Late-Titled-Tuesday-Blitz-November-28-2023"]
[Site "Chess.com"]
[Date "2023.11.28"]
[Round "1"]
[White "MKlose11"]
[Black "randomo"]
[Result "1-0"]
[WhiteElo "2614"]
[BlackElo "2322"]
[TimeControl "180+1"]
[EndTime "14:07:10 PST"]
[Termination "MKlose11 won by resignation"]

1. e4 {[%clk 0:03:00]} 1... e5 {[%clk 0:02:59.5]} 2. Nf3 {[%clk 0:02:24.4]} 2...
Nc6 {[%clk 0:02:59.1]} 3. d4 {[%clk 0:02:23.8]} 3... exd4 {[%clk 0:02:58.5]} 4.
Bc4 {[%clk 0:02:24.3]} 4... d6 {[%clk 0:02:58.4]} 5. Nxd4 {[%clk 0:02:23.4]}
5... Nf6 {[%clk 0:02:58.5]} 6. Nc3 {[%clk 0:02:23.1]} 6... Be7 {[%clk
0:02:58.8]} 7. O-O {[%clk 0:02:21.9]} 7... O-O {[%clk 0:02:58.4]} 8. a4 {[%clk
0:02:14.2]} 8... Nxe4 {[%clk 0:02:53]} 9. Nxe4 {[%clk 0:02:04.8]} 9... d5 {[%clk
0:02:53]} 10. Nxc6 {[%clk 0:02:04.5]} 10... bxc6 {[%clk 0:02:53.7]} 11. Bd3
{[%clk 0:01:55.1]} 11... dxe4 {[%clk 0:02:53.7]} 12. Bxe4 {[%clk 0:01:56]} 12...
Bd7 {[%clk 0:02:49]} 13. Bf4 {[%clk 0:01:53.6]} 13... Rb8 {[%clk 0:02:40]} 14.
b3 {[%clk 0:01:52.4]} 14... Rb4 {[%clk 0:02:32.7]} 15. Qf3 {[%clk 0:01:47.1]}
15... f5 {[%clk 0:02:20.5]} 16. Bd3 {[%clk 0:01:42.2]} 16... Bd6 {[%clk
0:02:13.7]} 17. Bc4+ {[%clk 0:01:28.2]} 17... Kh8 {[%clk 0:02:12.6]} 18. Rad1
{[%clk 0:01:28.8]} 18... Qf6 {[%clk 0:01:59.6]} 19. Bd2 {[%clk 0:01:16.9]} 19...
Rbb8 {[%clk 0:01:57.5]} 20. Bc3 {[%clk 0:01:17.2]} 20... Qh6 {[%clk 0:01:54.3]}
21. h3 {[%clk 0:01:14.8]} 21... Rbe8 {[%clk 0:01:48.5]} 22. Rfe1 {[%clk
0:01:14.4]} 22... Qg6 {[%clk 0:01:09.5]} 23. Bd4 {[%clk 0:01:02.5]} 23... c5
{[%clk 0:00:45.1]} 24. Bc3 {[%clk 0:01:02.2]} 24... Bc6 {[%clk 0:00:42.4]} 25.
Bd5 {[%clk 0:01:02]} 25... Bxd5 {[%clk 0:00:41.9]} 26. Qxd5 {[%clk 0:01:02.9]}
26... f4 {[%clk 0:00:39.4]} 27. Qd3 {[%clk 0:00:55.9]} 27... Qg5 {[%clk
0:00:34.7]} 28. Qf3 {[%clk 0:00:54.8]} 28... Qf5 {[%clk 0:00:31.7]} 29. Rd3
{[%clk 0:00:49]} 29... Rxe1+ {[%clk 0:00:27.7]} 30. Bxe1 {[%clk 0:00:49.9]}
30... c4 {[%clk 0:00:25.3]} 31. bxc4 {[%clk 0:00:47.4]} 31... Qc5 {[%clk
0:00:25.2]} 32. Qd5 {[%clk 0:00:41.9]} 32... Qb6 {[%clk 0:00:22.4]} 33. Bc3
{[%clk 0:00:37.2]} 33... Qb1+ {[%clk 0:00:16.5]} 34. Rd1 {[%clk 0:00:33.2]}
34... Qxc2 {[%clk 0:00:16.4]} 35. Qd4 {[%clk 0:00:33.8]} 35... Qg6 {[%clk
0:00:15.7]} 36. c5 {[%clk 0:00:28.4]} 36... f3 {[%clk 0:00:12.2]} 37. Qxg7+
{[%clk 0:00:24]} 37... Qxg7 {[%clk 0:00:11.8]} 38. Bxg7+ {[%clk 0:00:24.9]}
38... Kxg7 {[%clk 0:00:11.7]} 39. cxd6 {[%clk 0:00:25.6]} 39... cxd6 {[%clk
0:00:12]} 40. Rxd6 {[%clk 0:00:26.4]} 40... Rf4 {[%clk 0:00:02.7]} 41. Rd7+
{[%clk 0:00:25.8]} 1-0

[Event "Late-Titled-Tuesday-Blitz-November-28-2023"]
[Site "Chess.com"]
[Date "2023.11.28"]
[Round "1"]
[White "Alohamora11"]
[Black "GAO"]
[Result "1-0"]
[WhiteElo "2578"]
[BlackElo "2248"]
[TimeControl "180+1"]
[EndTime "14:07:11 PST"]
[Termination "Alohamora11 won by checkmate"]

1. e4 {[%clk 0:03:00.9]} 1... c5 {[%clk 0:02:54.9]} 2. Nf3 {[%clk 0:03:01]} 2...
Nc6 {[%clk 0:02:55.6]} 3. d4 {[%clk 0:03:00.9]} 3... cxd4 {[%clk 0:02:56.5]} 4.
Nxd4 {[%clk 0:03:01.8]} 4... g6 {[%clk 0:02:56.4]} 5. c4 {[%clk 0:03:01.1]} 5...
Bg7 {[%clk 0:02:56.9]} 6. Be3 {[%clk 0:03:01.3]} 6... Qb6 {[%clk 0:02:57.5]} 7.
Nb3 {[%clk 0:02:48]} 7... Qd8 {[%clk 0:02:57.6]} 8. Nc3 {[%clk 0:02:47.9]} 8...
Bxc3+ {[%clk 0:02:56.2]} 9. bxc3 {[%clk 0:02:48.1]} 9... Nf6 {[%clk 0:02:56]}
10. Bd3 {[%clk 0:02:42.9]} 10... d6 {[%clk 0:02:56]} 11. f3 {[%clk 0:02:40.5]}
11... O-O {[%clk 0:02:56]} 12. O-O {[%clk 0:02:40.8]} 12... Be6 {[%clk
0:02:55.3]} 13. c5 {[%clk 0:02:40.4]} 13... d5 {[%clk 0:02:53.2]} 14. Nd4 {[%clk
0:02:35.6]} 14... Ne5 {[%clk 0:02:44.6]} 15. Nxe6 {[%clk 0:02:26.1]} 15... fxe6
{[%clk 0:02:45.5]} 16. Bd4 {[%clk 0:02:25.1]} 16... Nc6 {[%clk 0:02:44]} 17. e5
{[%clk 0:02:23.1]} 17... Nd7 {[%clk 0:02:43.8]} 18. f4 {[%clk 0:02:19.4]} 18...
Qa5 {[%clk 0:02:41.6]} 19. Qg4 {[%clk 0:02:02.7]} 19... Rf7 {[%clk 0:02:19.9]}
20. Rab1 {[%clk 0:01:24.7]} 20... Nxc5 {[%clk 0:02:15.1]} 21. Rb5 {[%clk
0:01:24.1]} 21... Nxd3 {[%clk 0:02:07.7]} 22. Rxa5 {[%clk 0:01:24.2]} 22... Nxa5
{[%clk 0:02:08.6]} 23. Qxe6 {[%clk 0:01:14.5]} 23... Nc6 {[%clk 0:01:42.7]} 24.
Qxd5 {[%clk 0:01:09.1]} 24... Rd8 {[%clk 0:01:40.3]} 25. Qc4 {[%clk 0:01:04.6]}
25... Nb2 {[%clk 0:01:34]} 26. Qb3 {[%clk 0:01:02.4]} 26... Nd3 {[%clk
0:01:33.7]} 27. Qxb7 {[%clk 0:00:49.9]} 27... Nxd4 {[%clk 0:01:30.5]} 28. cxd4
{[%clk 0:00:50.8]} 28... Nxf4 {[%clk 0:01:31]} 29. g3 {[%clk 0:00:39.6]} 29...
Ne2+ {[%clk 0:01:19.7]} 30. Kg2 {[%clk 0:00:39.7]} 30... Nxd4 {[%clk 0:01:11.8]}
31. Rxf7 {[%clk 0:00:36.8]} 31... Kxf7 {[%clk 0:01:12.7]} 32. Qxa7 {[%clk
0:00:37]} 32... Nf5 {[%clk 0:01:11.2]} 33. Qa5 {[%clk 0:00:30.3]} 33... Rc8
{[%clk 0:01:01.6]} 34. Qd5+ {[%clk 0:00:27.8]} 34... Kg7 {[%clk 0:00:59.2]} 35.
Qd7 {[%clk 0:00:22.3]} 35... Rc2+ {[%clk 0:00:58.9]} 36. Kg1 {[%clk 0:00:21]}
36... Rxa2 {[%clk 0:00:38.9]} 37. g4 {[%clk 0:00:21.2]} 37... Ra1+ {[%clk
0:00:39.3]} 38. Kf2 {[%clk 0:00:20.7]} 38... Ra2+ {[%clk 0:00:38.9]} 39. Ke1
{[%clk 0:00:20.5]} 39... Ne3 {[%clk 0:00:20.1]} 40. Qxe7+ {[%clk 0:00:18.6]}
40... Kh6 {[%clk 0:00:13.7]} 41. Qh4+ {[%clk 0:00:18.9]} 41... Kg7 {[%clk
0:00:12.7]} 42. Qf6+ {[%clk 0:00:19.6]} 42... Kh6 {[%clk 0:00:11.8]} 43. Qf4+
{[%clk 0:00:19.7]} 43... g5 {[%clk 0:00:11]} 44. Qf6# {[%clk 0:00:19.5]} 1-0

[Event "Late-Titled-Tuesday-Blitz-November-28-2023"]
[Site "Chess.com"]
[Date "2023.11.28"]
[Round "1"]
[White "chessisveryfun1264"]
[Black "lluiss"]
[Result "0-1"]
[WhiteElo "2522"]
[BlackElo "2192"]
[TimeControl "180+1"]
[EndTime "14:07:15 PST"]
[Termination "lluiss won by checkmate"]

1. c4 {[%clk 0:02:55.6]} 1... Nf6 {[%clk 0:02:59.5]} 2. Nf3 {[%clk 0:02:53.7]}
2... g6 {[%clk 0:02:58.4]} 3. g3 {[%clk 0:02:54.3]} 3... Bg7 {[%clk 0:02:58.3]}
4. Bg2 {[%clk 0:02:55.1]} 4... O-O {[%clk 0:02:58.7]} 5. O-O {[%clk 0:02:55.2]}
5... c6 {[%clk 0:02:59]} 6. b3 {[%clk 0:02:55.8]} 6... Ne4 {[%clk 0:02:56.8]} 7.
d4 {[%clk 0:02:55]} 7... d5 {[%clk 0:02:57.2]} 8. Bb2 {[%clk 0:02:51.4]} 8...
dxc4 {[%clk 0:02:42.5]} 9. bxc4 {[%clk 0:02:52.3]} 9... c5 {[%clk 0:02:42]} 10.
e3 {[%clk 0:02:50.3]} 10... Nc6 {[%clk 0:02:39.4]} 11. Nbd2 {[%clk 0:02:44.6]}
11... Nxd2 {[%clk 0:02:30.8]} 12. Qxd2 {[%clk 0:02:45.5]} 12... cxd4 {[%clk
0:02:20.1]} 13. exd4 {[%clk 0:02:39]} 13... Bg4 {[%clk 0:02:18.9]} 14. d5 {[%clk
0:02:36.3]} 14... Bxf3 {[%clk 0:02:13.2]} 15. Bxf3 {[%clk 0:02:32.6]} 15... Ne5
{[%clk 0:02:12.7]} 16. Bg2 {[%clk 0:02:26.5]} 16... Nxc4 {[%clk 0:02:08.2]} 17.
Qc2 {[%clk 0:02:23.2]} 17... Nxb2 {[%clk 0:02:06.2]} 18. Rab1 {[%clk 0:02:23.8]}
18... Rc8 {[%clk 0:01:51.4]} 19. Qe2 {[%clk 0:02:20.7]} 19... Qb6 {[%clk
0:01:42.5]} 20. Qxe7 {[%clk 0:02:12.9]} 20... Rfe8 {[%clk 0:01:36.4]} 21. Qg5
{[%clk 0:01:55.2]} 21... Qd8 {[%clk 0:01:33.3]} 22. Qg4 {[%clk 0:01:49.6]} 22...
Qd6 {[%clk 0:01:28.1]} 23. Rfe1 {[%clk 0:01:32.8]} 23... Rxe1+ {[%clk
0:01:17.5]} 24. Rxe1 {[%clk 0:01:33.7]} 24... Rd8 {[%clk 0:01:17.6]} 25. Re3
{[%clk 0:01:18.5]} 25... b5 {[%clk 0:01:14.2]} 26. Rb3 {[%clk 0:01:04.6]} 26...
a6 {[%clk 0:01:08.7]} 27. Qf3 {[%clk 0:00:58.8]} 27... Nc4 {[%clk 0:01:06.4]}
28. a4 {[%clk 0:00:56.5]} 28... Nd2 {[%clk 0:01:05.6]} 29. Qd3 {[%clk
0:00:55.3]} 29... Nxb3 {[%clk 0:01:05]} 30. Qxb3 {[%clk 0:00:56.2]} 30... bxa4
{[%clk 0:01:03.9]} 31. Qxa4 {[%clk 0:00:57.1]} 31... h6 {[%clk 0:00:57.8]} 32.
Qa5 {[%clk 0:00:56.1]} 32... Rd7 {[%clk 0:00:52]} 33. h3 {[%clk 0:00:52.8]}
33... f5 {[%clk 0:00:51.6]} 34. Qe1 {[%clk 0:00:48.2]} 34... Kh7 {[%clk
0:00:50.6]} 35. h4 {[%clk 0:00:47.5]} 35... Bd4 {[%clk 0:00:49.1]} 36. Qd2
{[%clk 0:00:47.1]} 36... Qc5 {[%clk 0:00:46.4]} 37. Qe2 {[%clk 0:00:45.1]} 37...
Bxf2+ {[%clk 0:00:43]} 38. Kh2 {[%clk 0:00:43.7]} 38... Qe3 {[%clk 0:00:42.8]}
39. Qf1 {[%clk 0:00:37.7]} 39... Qxg3+ {[%clk 0:00:41.6]} 40. Kh1 {[%clk
0:00:38.6]} 40... Qxh4+ {[%clk 0:00:41.5]} 41. Bh3 {[%clk 0:00:39.5]} 41... Qg3
{[%clk 0:00:39.9]} 42. Bg2 {[%clk 0:00:37.4]} 42... f4 {[%clk 0:00:34.9]} 43.
Bh3 {[%clk 0:00:28.1]} 43... Rxd5 {[%clk 0:00:25.2]} 44. Bg4 {[%clk 0:00:17.5]}
44... Qxg4 {[%clk 0:00:19.8]} 45. Qg2 {[%clk 0:00:17.3]} 45... Rh5+ {[%clk
0:00:16.4]} 46. Qh2 {[%clk 0:00:17.1]} 46... Qg1# {[%clk 0:00:16.5]} 0-1